[Event "Early-Titled-Tuesday-Blitz-May-07-2024"]
[Site "Chess.com"]
[Date "2024.05.07"]
[Round "10"]
[White "VD_coach"]
[Black "HanSchut"]
[Result "1-0"]
[WhiteElo "2595"]
[BlackElo "2383"]
[TimeControl "180+1"]
[EndTime "10:01:49 PDT"]
[Termination "VD_coach won by resignation"]

1. Nf3 {[%clk 0:03:00.9]} 1... Nf6 {[%clk 0:02:59.7]} 2. d4 {[%clk 0:03:01.6]}
2... g6 {[%clk 0:03:00.1]} 3. c4 {[%clk 0:03:02.5]} 3... Bg7 {[%clk 0:03:00.1]}
4. g3 {[%clk 0:03:01.9]} 4... O-O {[%clk 0:03:00]} 5. Bg2 {[%clk 0:03:02.8]}
5... d5 {[%clk 0:03:00.2]} 6. O-O {[%clk 0:03:03.7]} 6... dxc4 {[%clk
0:03:00.4]} 7. Na3 {[%clk 0:03:03]} 7... c3 {[%clk 0:02:58.3]} 8. bxc3 {[%clk
0:03:02.9]} 8... c5 {[%clk 0:02:58.8]} 9. Nc4 {[%clk 0:03:01.9]} 9... cxd4
{[%clk 0:02:57.5]} 10. cxd4 {[%clk 0:03:00.9]} 10... Nc6 {[%clk 0:02:57.9]} 11.
Bf4 {[%clk 0:02:58.3]} 11... Bg4 {[%clk 0:02:55.2]} 12. Nce5 {[%clk 0:02:48.5]}
12... Bxf3 {[%clk 0:02:17.1]} 13. Bxf3 {[%clk 0:02:45.8]} 13... Nxd4 {[%clk
0:01:55]} 14. Bxb7 {[%clk 0:02:41.8]} 14... Rb8 {[%clk 0:01:55.3]} 15. Rb1
{[%clk 0:02:37.1]} 15... Nh5 {[%clk 0:01:48.7]} 16. e3 {[%clk 0:02:31.4]} 16...
Nxf4 {[%clk 0:01:47.3]} 17. exf4 {[%clk 0:02:19.7]} 17... Bxe5 {[%clk
0:01:43.6]} 18. fxe5 {[%clk 0:02:19.7]} 18... Rxb7 {[%clk 0:01:28]} 19. Rxb7
{[%clk 0:02:07.3]} 19... Qd5 {[%clk 0:01:27.4]} 20. Rb3 {[%clk 0:01:31.5]} 20...
Rd8 {[%clk 0:01:26.7]} 21. Re3 {[%clk 0:01:19.3]} 21... Qxa2 {[%clk 0:01:08]}
22. Qb1 {[%clk 0:01:07.1]} 22... Qd5 {[%clk 0:00:58.4]} 23. Qe4 {[%clk 0:01:07]}
23... Qxe4 {[%clk 0:00:53.6]} 24. Rxe4 {[%clk 0:01:07.9]} 24... Nf3+ {[%clk
0:00:53.9]} 25. Kg2 {[%clk 0:01:08.3]} 25... Nd2 {[%clk 0:00:54.5]} 26. Rd1
{[%clk 0:01:08.7]} 26... Nxe4 {[%clk 0:00:34.9]} 27. Rxd8+ {[%clk 0:01:09.6]}
27... Kg7 {[%clk 0:00:35.1]} 28. Rd7 {[%clk 0:01:08.4]} 28... e6 {[%clk
0:00:34.4]} 29. Rxa7 {[%clk 0:01:08.3]} 29... Nc5 {[%clk 0:00:29.5]} 30. f4
{[%clk 0:01:07.3]} 30... h5 {[%clk 0:00:29.1]} 31. Kf3 {[%clk 0:01:07.4]} 31...
Nb3 {[%clk 0:00:23.9]} 32. Rc7 {[%clk 0:01:01.5]} 32... Nd4+ {[%clk 0:00:22.5]}
33. Ke4 {[%clk 0:01:01.2]} 33... Nf5 {[%clk 0:00:22.6]} 34. Ra7 {[%clk 0:01:00]}
34... Nh6 {[%clk 0:00:21.7]} 35. h3 {[%clk 0:00:58.5]} 35... Nf5 {[%clk
0:00:21.8]} 36. g4 {[%clk 0:00:58.5]} 36... hxg4 {[%clk 0:00:22.7]} 37. hxg4
{[%clk 0:00:59.2]} 37... Ng3+ {[%clk 0:00:23.2]} 38. Kf3 {[%clk 0:00:56.4]}
38... Nf1 {[%clk 0:00:22.6]} 39. Ra2 {[%clk 0:00:55.6]} 1-0

[Event "Early-Titled-Tuesday-Blitz-May-07-2024"]
[Site "Chess.com"]
[Date "2024.05.07"]
[Round "10"]
[White "Hikaru"]
[Black "klimkoj"]
[Result "1-0"]
[WhiteElo "3227"]
[BlackElo "2942"]
[TimeControl "180+1"]
[EndTime "10:01:53 PDT"]
[Termination "Hikaru won on time"]

1. a4 {[%clk 0:03:00.9]} 1... a5 {[%clk 0:02:58.3]} 2. Ra3 {[%clk 0:03:01.8]}
2... e5 {[%clk 0:02:58.1]} 3. Rg3 {[%clk 0:03:00.9]} 3... Nf6 {[%clk 0:02:57.6]}
4. d4 {[%clk 0:02:59.3]} 4... e4 {[%clk 0:02:57.5]} 5. Bg5 {[%clk 0:02:53.3]}
5... d5 {[%clk 0:02:57.3]} 6. c4 {[%clk 0:02:52.9]} 6... Bb4+ {[%clk 0:02:53.5]}
7. Nc3 {[%clk 0:02:52.2]} 7... dxc4 {[%clk 0:02:51.8]} 8. e3 {[%clk 0:02:51.4]}
8... Be6 {[%clk 0:02:52]} 9. Nh3 {[%clk 0:02:47.4]} 9... h6 {[%clk 0:02:38.6]}
10. Bxf6 {[%clk 0:02:43]} 10... Qxf6 {[%clk 0:02:39.5]} 11. Nf4 {[%clk
0:02:43.6]} 11... g5 {[%clk 0:02:29.9]} 12. Nh5 {[%clk 0:02:32.5]} 12... Qg6
{[%clk 0:02:18.7]} 13. d5 {[%clk 0:02:32.8]} 13... Bf5 {[%clk 0:02:01.2]} 14.
Qd4 {[%clk 0:02:31.5]} 14... Rf8 {[%clk 0:01:54.6]} 15. Ng7+ {[%clk 0:02:28.1]}
15... Kd8 {[%clk 0:01:53.5]} 16. h4 {[%clk 0:02:22.2]} 16... Nd7 {[%clk
0:01:46.3]} 17. Nxf5 {[%clk 0:01:54.5]} 17... Qxf5 {[%clk 0:01:47.2]} 18. hxg5
{[%clk 0:01:54.4]} 18... hxg5 {[%clk 0:01:45.4]} 19. Bxc4 {[%clk 0:01:54.5]}
19... f6 {[%clk 0:01:14.7]} 20. Rgh3 {[%clk 0:01:49.1]} 20... Qe5 {[%clk
0:01:12.4]} 21. Qd2 {[%clk 0:01:34.6]} 21... Nb6 {[%clk 0:01:04.2]} 22. Bb3
{[%clk 0:01:33.4]} 22... Nd7 {[%clk 0:00:30.7]} 23. Ke2 {[%clk 0:01:30.3]} 23...
Qf5 {[%clk 0:00:26.1]} 24. Qd4 {[%clk 0:01:26.4]} 24... Bxc3 {[%clk 0:00:18]}
25. bxc3 {[%clk 0:01:25.9]} 25... Ne5 {[%clk 0:00:15]} 26. Bc2 {[%clk
0:01:15.2]} 26... Qg4+ {[%clk 0:00:14.1]} 27. Kf1 {[%clk 0:01:15.5]} 27... Nd3
{[%clk 0:00:08.5]} 28. f3 {[%clk 0:01:08.3]} 28... Qf5 {[%clk 0:00:07.1]} 29. d6
{[%clk 0:00:53.2]} 29... c5 {[%clk 0:00:05.7]} 30. Qc4 {[%clk 0:00:53.6]} 30...
Ne5 {[%clk 0:00:04.3]} 31. Qxc5 {[%clk 0:00:51.6]} 1-0

[Event "Early-Titled-Tuesday-Blitz-May-07-2024"]
[Site "Chess.com"]
[Date "2024.05.07"]
[Round "10"]
[White "BM223344"]
[Black "LeoLV10"]
[Result "0-1"]
[WhiteElo "2613"]
[BlackElo "2513"]
[TimeControl "180+1"]
[EndTime "10:01:54 PDT"]
[Termination "LeoLV10 won by checkmate"]

1. d4 {[%clk 0:02:54.5]} 1... Nf6 {[%clk 0:02:59.3]} 2. c4 {[%clk 0:02:53.6]}
2... e6 {[%clk 0:02:58.8]} 3. Nf3 {[%clk 0:02:53.5]} 3... c5 {[%clk 0:02:57.6]}
4. d5 {[%clk 0:02:52.9]} 4... exd5 {[%clk 0:02:58.5]} 5. cxd5 {[%clk 0:02:53.8]}
5... d6 {[%clk 0:02:58.3]} 6. Nc3 {[%clk 0:02:54.2]} 6... g6 {[%clk 0:02:58.9]}
7. e4 {[%clk 0:02:54.7]} 7... Bg7 {[%clk 0:02:59.6]} 8. Bd3 {[%clk 0:02:55.4]}
8... O-O {[%clk 0:03:00]} 9. O-O {[%clk 0:02:56]} 9... b5 {[%clk 0:03:00.5]} 10.
Bxb5 {[%clk 0:02:54.7]} 10... a6 {[%clk 0:02:45.7]} 11. Bd3 {[%clk 0:02:50.6]}
11... Nbd7 {[%clk 0:02:45.4]} 12. Bf4 {[%clk 0:02:51.2]} 12... Qe7 {[%clk
0:02:44.5]} 13. Re1 {[%clk 0:02:48.5]} 13... Nh5 {[%clk 0:02:44.6]} 14. Bg5
{[%clk 0:02:46.7]} 14... Qe8 {[%clk 0:02:44.1]} 15. Qd2 {[%clk 0:02:41.9]} 15...
Ne5 {[%clk 0:02:42.3]} 16. Nxe5 {[%clk 0:02:41.3]} 16... Bxe5 {[%clk 0:02:41]}
17. Bh6 {[%clk 0:02:38.3]} 17... Ng7 {[%clk 0:02:40.7]} 18. f4 {[%clk
0:02:35.6]} 18... Bd4+ {[%clk 0:02:40.7]} 19. Kh1 {[%clk 0:02:36.2]} 19... Qe7
{[%clk 0:02:35.9]} 20. Ne2 {[%clk 0:02:31.4]} 20... Bf6 {[%clk 0:02:33.9]} 21.
Ng3 {[%clk 0:02:30.5]} 21... Bh4 {[%clk 0:02:33.6]} 22. e5 {[%clk 0:02:29.3]}
22... Rd8 {[%clk 0:02:20.7]} 23. Bxg7 {[%clk 0:02:18.5]} 23... Kxg7 {[%clk
0:02:17.7]} 24. e6 {[%clk 0:02:18.9]} 24... f6 {[%clk 0:02:14.7]} 25. Qe3 {[%clk
0:02:18]} 25... Bb7 {[%clk 0:02:13.2]} 26. Bc4 {[%clk 0:02:17.6]} 26... f5
{[%clk 0:02:06.4]} 27. Qc3+ {[%clk 0:02:16.5]} 27... Bf6 {[%clk 0:02:06.4]} 28.
Qc2 {[%clk 0:02:15]} 28... Rab8 {[%clk 0:02:05.7]} 29. Rab1 {[%clk 0:02:15.4]}
29... a5 {[%clk 0:02:05]} 30. a3 {[%clk 0:02:15.9]} 30... Ba8 {[%clk 0:01:57.3]}
31. Ne2 {[%clk 0:02:15.6]} 31... Rb6 {[%clk 0:01:54.1]} 32. Ng1 {[%clk
0:02:11.6]} 32... Rdb8 {[%clk 0:01:55]} 33. b3 {[%clk 0:02:12]} 33... Bb7 {[%clk
0:01:48.4]} 34. Nf3 {[%clk 0:02:09.2]} 34... h6 {[%clk 0:01:48.5]} 35. Qd2
{[%clk 0:02:06.7]} 35... Ra8 {[%clk 0:01:46.5]} 36. h3 {[%clk 0:02:00.9]} 36...
Ra7 {[%clk 0:01:36.2]} 37. g4 {[%clk 0:01:59.1]} 37... Ba6 {[%clk 0:01:24.2]}
38. gxf5 {[%clk 0:01:45.2]} 38... Bxc4 {[%clk 0:01:14.7]} 39. bxc4 {[%clk
0:01:45.5]} 39... Rab7 {[%clk 0:01:15.2]} 40. Rxb6 {[%clk 0:01:44.1]} 40... Rxb6
{[%clk 0:01:16.1]} 41. fxg6 {[%clk 0:01:38.1]} 41... Rb3 {[%clk 0:01:11.1]} 42.
Re3 {[%clk 0:01:31.4]} 42... Rb1+ {[%clk 0:01:06.2]} 43. Ng1 {[%clk 0:01:09.4]}
43... Bd4 {[%clk 0:01:04.5]} 44. Rg3 {[%clk 0:01:09.6]} 44... Qh4 {[%clk
0:01:01]} 45. Qd3 {[%clk 0:00:58.5]} 45... Re1 {[%clk 0:00:57]} 46. Qf5 {[%clk
0:00:36.2]} 46... Bf6 {[%clk 0:00:55.1]} 47. Kg2 {[%clk 0:00:34.2]} 47... Rxg1+
{[%clk 0:00:53.8]} 48. Kxg1 {[%clk 0:00:32.6]} 48... Qxg3+ {[%clk 0:00:54.4]}
49. Kf1 {[%clk 0:00:33.2]} 49... Qf3+ {[%clk 0:00:54.7]} 50. Ke1 {[%clk
0:00:31.6]} 50... Bc3# {[%clk 0:00:53.8]} 0-1

[Event "Early-Titled-Tuesday-Blitz-May-07-2024"]
[Site "Chess.com"]
[Date "2024.05.07"]
[Round "10"]
[White "JosefineHeinemann"]
[Black "rhwr"]
[Result "0-1"]
[WhiteElo "2490"]
[BlackElo "2305"]
[TimeControl "180+1"]
[EndTime "10:01:57 PDT"]
[Termination "rhwr won by resignation"]

1. e4 {[%clk 0:03:00.3]} 1... c5 {[%clk 0:02:59.5]} 2. c3 {[%clk 0:02:47.9]}
2... Nf6 {[%clk 0:02:57.3]} 3. e5 {[%clk 0:02:47.2]} 3... Nd5 {[%clk 0:02:57.8]}
4. Nf3 {[%clk 0:02:46.8]} 4... d6 {[%clk 0:02:56.3]} 5. exd6 {[%clk 0:02:44.1]}
5... Qxd6 {[%clk 0:02:54.1]} 6. g3 {[%clk 0:02:44.4]} 6... Bg4 {[%clk
0:02:52.1]} 7. Bg2 {[%clk 0:02:44.4]} 7... Qe6+ {[%clk 0:02:47.6]} 8. Kf1 {[%clk
0:02:42]} 8... Nc6 {[%clk 0:02:41.3]} 9. h3 {[%clk 0:02:31.9]} 9... Bh5 {[%clk
0:02:34.7]} 10. g4 {[%clk 0:02:27.5]} 10... Bg6 {[%clk 0:02:33.5]} 11. d4 {[%clk
0:02:26.1]} 11... O-O-O {[%clk 0:02:30.3]} 12. Na3 {[%clk 0:02:18.6]} 12... cxd4
{[%clk 0:02:06.5]} 13. cxd4 {[%clk 0:02:16.7]} 13... f6 {[%clk 0:01:53.9]} 14.
Bd2 {[%clk 0:02:14]} 14... Kb8 {[%clk 0:01:43.6]} 15. Rc1 {[%clk 0:02:11.5]}
15... Ndb4 {[%clk 0:01:36.1]} 16. Bf4+ {[%clk 0:02:05.8]} 16... Ka8 {[%clk
0:01:33.7]} 17. Rc3 {[%clk 0:01:53.4]} 17... Nxa2 {[%clk 0:01:17]} 18. Re3
{[%clk 0:01:52.7]} 18... Qd7 {[%clk 0:01:11.2]} 19. Qb3 {[%clk 0:01:45]} 19...
Nab4 {[%clk 0:01:07.8]} 20. Bg3 {[%clk 0:01:35.7]} 20... h5 {[%clk 0:00:57.7]}
21. Nb5 {[%clk 0:01:24.2]} 21... Rc8 {[%clk 0:00:53.7]} 22. Nd2 {[%clk
0:01:15.4]} 22... hxg4 {[%clk 0:00:51.8]} 23. hxg4 {[%clk 0:01:13.9]} 23...
Rxh1+ {[%clk 0:00:51]} 24. Bxh1 {[%clk 0:01:14.8]} 24... Nxd4 {[%clk 0:00:43]}
25. Qxb4 {[%clk 0:00:55.6]} 25... Qxb5+ {[%clk 0:00:41.5]} 26. Qxb5 {[%clk
0:00:55.9]} 26... Nxb5 {[%clk 0:00:41]} 27. Rb3 {[%clk 0:00:55.9]} 27... Rc1+
{[%clk 0:00:35.5]} 28. Kg2 {[%clk 0:00:55.5]} 28... a6 {[%clk 0:00:30.4]} 29.
Kh2 {[%clk 0:00:54.8]} 29... e5 {[%clk 0:00:29.1]} 30. Bg2 {[%clk 0:00:47.3]}
30... Bc5 {[%clk 0:00:24.1]} 31. Ne4 {[%clk 0:00:45.6]} 31... Bd4 {[%clk
0:00:22.8]} 32. f4 {[%clk 0:00:34.1]} 32... Bf7 {[%clk 0:00:19.3]} 33. fxe5
{[%clk 0:00:33.6]} 33... Bxb3 {[%clk 0:00:18.5]} 0-1

[Event "Early-Titled-Tuesday-Blitz-May-07-2024"]
[Site "Chess.com"]
[Date "2024.05.07"]
[Round "10"]
[White "Caterpiller35"]
[Black "Heinza9"]
[Result "0-1"]
[WhiteElo "2471"]
[BlackElo "2354"]
[TimeControl "180+1"]
[EndTime "10:02:01 PDT"]
[Termination "Heinza9 won on time"]

1. e4 {[%clk 0:03:00.9]} 1... e5 {[%clk 0:02:58.4]} 2. Nc3 {[%clk 0:03:00.6]}
2... Nf6 {[%clk 0:02:57.5]} 3. f4 {[%clk 0:03:00.3]} 3... d5 {[%clk 0:02:56.8]}
4. fxe5 {[%clk 0:03:00.6]} 4... Nxe4 {[%clk 0:02:57.1]} 5. Qf3 {[%clk
0:02:59.6]} 5... Nc6 {[%clk 0:02:57.2]} 6. Bb5 {[%clk 0:02:58.5]} 6... Nxc3
{[%clk 0:02:57.2]} 7. dxc3 {[%clk 0:02:58.4]} 7... Be7 {[%clk 0:02:57.4]} 8. Bf4
{[%clk 0:02:53.4]} 8... O-O {[%clk 0:02:57.3]} 9. O-O-O {[%clk 0:02:48.5]} 9...
Be6 {[%clk 0:02:57.4]} 10. Ne2 {[%clk 0:02:41.6]} 10... f6 {[%clk 0:02:56.5]}
11. exf6 {[%clk 0:02:36.4]} 11... Bxf6 {[%clk 0:02:56.2]} 12. Bxc6 {[%clk
0:02:30.9]} 12... bxc6 {[%clk 0:02:55.7]} 13. Nd4 {[%clk 0:02:31.4]} 13... Bd7
{[%clk 0:02:54.2]} 14. Qd3 {[%clk 0:02:17.8]} 14... c5 {[%clk 0:02:15.4]} 15.
Nf3 {[%clk 0:02:07.6]} 15... c6 {[%clk 0:02:14.6]} 16. Bg3 {[%clk 0:01:58.3]}
16... Bg4 {[%clk 0:02:06.1]} 17. c4 {[%clk 0:01:45.6]} 17... Qb6 {[%clk
0:02:00.5]} 18. c3 {[%clk 0:01:29]} 18... Rad8 {[%clk 0:01:56.2]} 19. h4 {[%clk
0:00:54.2]} 19... d4 {[%clk 0:01:43.4]} 20. cxd4 {[%clk 0:00:53.4]} 20... cxd4
{[%clk 0:01:43.6]} 21. Qb3 {[%clk 0:00:50.1]} 21... Qxb3 {[%clk 0:01:39.5]} 22.
axb3 {[%clk 0:00:51]} 22... c5 {[%clk 0:01:35.8]} 23. h5 {[%clk 0:00:37.1]}
23... h6 {[%clk 0:01:33.2]} 24. Rhf1 {[%clk 0:00:27.1]} 24... d3 {[%clk
0:01:22.8]} 25. Kb1 {[%clk 0:00:21.2]} 25... Bxh5 {[%clk 0:01:19.4]} 26. Rd2
{[%clk 0:00:15.5]} 26... Bg5 {[%clk 0:01:17.3]} 27. Rdd1 {[%clk 0:00:09.7]}
27... d2 {[%clk 0:01:14.5]} 28. Rh1 {[%clk 0:00:09.5]} 28... Bg6+ {[%clk
0:01:14.2]} 29. Ka2 {[%clk 0:00:09.2]} 29... Bc2 {[%clk 0:01:12]} 30. Bc7 {[%clk
0:00:05.1]} 30... Rd7 {[%clk 0:01:08]} 31. Nxg5 {[%clk 0:00:05.4]} 31... hxg5
{[%clk 0:01:04.6]} 32. Rxd2 {[%clk 0:00:01.3]} 32... Rxd2 {[%clk 0:01:03.2]} 33.
Be5 {[%clk 0:00:01.4]} 33... Rf5 {[%clk 0:00:52.1]} 34. Bc3 {[%clk 0:00:00.2]}
34... Rxg2 {[%clk 0:00:50.5]} 0-1

[Event "Early-Titled-Tuesday-Blitz-May-07-2024"]
[Site "Chess.com"]
[Date "2024.05.07"]
[Round "10"]
[White "bancsoo"]
[Black "RebelJohnny"]
[Result "1-0"]
[WhiteElo "2859"]
[BlackElo "2577"]
[TimeControl "180+1"]
[EndTime "10:02:03 PDT"]
[Termination "bancsoo won by resignation"]

1. Nf3 {[%clk 0:02:57.2]} 1... d5 {[%clk 0:02:58.5]} 2. g3 {[%clk 0:02:57.4]}
2... Bg4 {[%clk 0:02:49.4]} 3. Bg2 {[%clk 0:02:57.5]} 3... Nd7 {[%clk
0:02:50.1]} 4. h3 {[%clk 0:02:57.4]} 4... Bh5 {[%clk 0:02:47.3]} 5. O-O {[%clk
0:02:50.5]} 5... c6 {[%clk 0:02:47.1]} 6. d4 {[%clk 0:02:47]} 6... Ngf6 {[%clk
0:02:43.2]} 7. c4 {[%clk 0:02:46.8]} 7... e6 {[%clk 0:02:31.6]} 8. cxd5 {[%clk
0:02:46.2]} 8... exd5 {[%clk 0:02:27.4]} 9. Ne5 {[%clk 0:02:45.7]} 9... Nxe5
{[%clk 0:02:13.4]} 10. dxe5 {[%clk 0:02:45.4]} 10... Nd7 {[%clk 0:02:14]} 11. f4
{[%clk 0:02:42.7]} 11... f5 {[%clk 0:01:55.2]} 12. Qc2 {[%clk 0:02:18.2]} 12...
Bg6 {[%clk 0:01:41.8]} 13. Nd2 {[%clk 0:02:16.8]} 13... Be7 {[%clk 0:01:29.4]}
14. Nf3 {[%clk 0:02:14.7]} 14... O-O {[%clk 0:01:23.6]} 15. Be3 {[%clk
0:02:14.4]} 15... Qa5 {[%clk 0:00:57.6]} 16. Kh2 {[%clk 0:02:06.6]} 16... Bc5
{[%clk 0:00:50.7]} 17. Nd4 {[%clk 0:01:47.4]} 17... Bxd4 {[%clk 0:00:47.3]} 18.
Bxd4 {[%clk 0:01:47.3]} 18... Rae8 {[%clk 0:00:36.8]} 19. e3 {[%clk 0:01:43.5]}
19... Rf7 {[%clk 0:00:29.7]} 20. b4 {[%clk 0:01:42.5]} 20... Qc7 {[%clk
0:00:27]} 21. Bxd5 {[%clk 0:01:39.1]} 21... Kh8 {[%clk 0:00:23.3]} 22. Bxf7
{[%clk 0:01:36.5]} 22... Bxf7 {[%clk 0:00:24.2]} 23. Qxf5 {[%clk 0:01:33.8]}
23... Bg6 {[%clk 0:00:22.4]} 24. Qg5 {[%clk 0:01:31.4]} 24... Be4 {[%clk
0:00:20.9]} 25. e6 {[%clk 0:01:20.9]} 25... Nf8 {[%clk 0:00:20.7]} 26. Qe5
{[%clk 0:01:21]} 26... Qxe5 {[%clk 0:00:18.3]} 27. Bxe5 {[%clk 0:01:21.9]} 27...
Nxe6 {[%clk 0:00:17]} 28. Rfd1 {[%clk 0:01:20.7]} 28... Bd5 {[%clk 0:00:16.9]}
29. e4 {[%clk 0:01:05.8]} 29... Bxe4 {[%clk 0:00:16.9]} 30. Rd7 {[%clk
0:01:06.6]} 30... Kg8 {[%clk 0:00:10.3]} 31. g4 {[%clk 0:01:01.1]} 31... g6
{[%clk 0:00:05.2]} 32. Rad1 {[%clk 0:00:58.9]} 32... Bd5 {[%clk 0:00:03.6]} 33.
Rxb7 {[%clk 0:00:58.7]} 33... Rf8 {[%clk 0:00:02.8]} 34. b5 {[%clk 0:00:51.8]}
34... Nxf4 {[%clk 0:00:01.6]} 35. Rg7+ {[%clk 0:00:51.3]} 1-0

[Event "Early-Titled-Tuesday-Blitz-May-07-2024"]
[Site "Chess.com"]
[Date "2024.05.07"]
[Round "10"]
[White "nochewycandy"]
[Black "toninhojit"]
[Result "1-0"]
[WhiteElo "2806"]
[BlackElo "2591"]
[TimeControl "180+1"]
[EndTime "10:02:11 PDT"]
[Termination "nochewycandy won by resignation"]

1. e4 {[%clk 0:03:00.9]} 1... e5 {[%clk 0:02:55.4]} 2. Nc3 {[%clk 0:02:58.9]}
2... Nc6 {[%clk 0:02:53.8]} 3. Bc4 {[%clk 0:02:58.3]} 3... Bc5 {[%clk
0:02:52.6]} 4. Qg4 {[%clk 0:02:57.3]} 4... Kf8 {[%clk 0:02:52.7]} 5. Qf3 {[%clk
0:02:55.7]} 5... Qf6 {[%clk 0:02:50.2]} 6. Nd5 {[%clk 0:02:54.5]} 6... Qxf3
{[%clk 0:02:47.8]} 7. Nxf3 {[%clk 0:02:55.4]} 7... Bb6 {[%clk 0:02:43.5]} 8. c3
{[%clk 0:02:50.7]} 8... d6 {[%clk 0:02:43.9]} 9. Ng5 {[%clk 0:02:42.6]} 9... Nh6
{[%clk 0:02:34.1]} 10. d3 {[%clk 0:02:35.8]} 10... f6 {[%clk 0:02:25.5]} 11. Nf3
{[%clk 0:02:35.3]} 11... Nf7 {[%clk 0:02:18.5]} 12. b4 {[%clk 0:02:28]} 12...
Ne7 {[%clk 0:02:14.6]} 13. Nxb6 {[%clk 0:02:22.9]} 13... axb6 {[%clk 0:02:15.5]}
14. Be3 {[%clk 0:02:17.3]} 14... Nd8 {[%clk 0:02:15.5]} 15. d4 {[%clk
0:02:10.7]} 15... Be6 {[%clk 0:02:15.7]} 16. d5 {[%clk 0:02:11]} 16... Bd7
{[%clk 0:02:15.8]} 17. Nd2 {[%clk 0:02:08.8]} 17... g6 {[%clk 0:02:09.9]} 18.
Bh6+ {[%clk 0:02:04.5]} 18... Kg8 {[%clk 0:02:10.5]} 19. f4 {[%clk 0:01:59.2]}
19... Nf7 {[%clk 0:02:07.2]} 20. fxe5 {[%clk 0:01:57.6]} 20... Nxh6 {[%clk
0:02:02.6]} 21. exf6 {[%clk 0:01:56.3]} 21... Nc8 {[%clk 0:02:03.1]} 22. h3
{[%clk 0:01:53.9]} 22... Nf7 {[%clk 0:01:57.8]} 23. g4 {[%clk 0:01:51.1]} 23...
Ne5 {[%clk 0:01:54.5]} 24. Be2 {[%clk 0:01:51.3]} 24... Kf7 {[%clk 0:01:49.1]}
25. O-O {[%clk 0:01:46.3]} 25... Na7 {[%clk 0:01:40.8]} 26. a4 {[%clk
0:01:45.1]} 26... Rae8 {[%clk 0:01:35.2]} 27. Kg2 {[%clk 0:01:39]} 27... g5
{[%clk 0:01:31.4]} 28. Rf2 {[%clk 0:01:24.2]} 28... h6 {[%clk 0:01:29.5]} 29.
Nf1 {[%clk 0:01:23.2]} 29... Ng6 {[%clk 0:01:29.3]} 30. Ng3 {[%clk 0:01:20.6]}
30... Nf4+ {[%clk 0:01:26]} 31. Kh2 {[%clk 0:01:20.2]} 31... c6 {[%clk
0:01:17.4]} 32. a5 {[%clk 0:01:14.8]} 32... b5 {[%clk 0:01:13.4]} 33. a6 {[%clk
0:01:13.8]} 33... b6 {[%clk 0:01:12.9]} 34. dxc6 {[%clk 0:01:12.8]} 34... Nxc6
{[%clk 0:01:12.4]} 35. Nf5 {[%clk 0:01:13.6]} 35... Bxf5 {[%clk 0:01:12.1]} 36.
gxf5 {[%clk 0:00:56.5]} 36... Nxe2 {[%clk 0:01:05.5]} 37. Rxe2 {[%clk 0:00:56]}
37... Kxf6 {[%clk 0:01:00.3]} 38. Rd2 {[%clk 0:00:55.8]} 38... Rd8 {[%clk
0:00:57]} 39. Rad1 {[%clk 0:00:54.3]} 39... Ke7 {[%clk 0:00:57.5]} 40. f6+
{[%clk 0:00:52.9]} 40... Ke6 {[%clk 0:00:55.2]} 41. Rd5 {[%clk 0:00:53.5]} 41...
Rhf8 {[%clk 0:00:49.6]} 42. Rxb5 {[%clk 0:00:53.7]} 42... Rxf6 {[%clk
0:00:46.2]} 43. Rxb6 {[%clk 0:00:51.7]} 43... Ne5 {[%clk 0:00:44.3]} 44. a7
{[%clk 0:00:46.9]} 44... Ra8 {[%clk 0:00:42.4]} 45. Rdxd6+ {[%clk 0:00:46.5]}
45... Ke7 {[%clk 0:00:39]} 46. Rxf6 {[%clk 0:00:47.2]} 46... Nc4 {[%clk
0:00:35.8]} 47. Rfe6+ {[%clk 0:00:45]} 47... Kf7 {[%clk 0:00:36]} 48. Ra6 {[%clk
0:00:45.2]} 48... Nd2 {[%clk 0:00:30.8]} 49. Reb6 {[%clk 0:00:43.3]} 49... Rxa7
{[%clk 0:00:28]} 50. Rxa7+ {[%clk 0:00:43.1]} 1-0

[Event "Early-Titled-Tuesday-Blitz-May-07-2024"]
[Site "Chess.com"]
[Date "2024.05.07"]
[Round "10"]
[White "Supergiuly"]
[Black "Guldona_2007"]
[Result "1-0"]
[WhiteElo "2347"]
[BlackElo "2178"]
[TimeControl "180+1"]
[EndTime "10:02:14 PDT"]
[Termination "Supergiuly won on time"]

1. f4 {[%clk 0:02:53.6]} 1... d5 {[%clk 0:02:58.2]} 2. g3 {[%clk 0:02:53.9]}
2... g6 {[%clk 0:02:57.3]} 3. Bg2 {[%clk 0:02:54.4]} 3... Bg7 {[%clk 0:02:55.6]}
4. Nf3 {[%clk 0:02:55.1]} 4... c5 {[%clk 0:02:53.6]} 5. O-O {[%clk 0:02:55.6]}
5... e6 {[%clk 0:02:50.9]} 6. d3 {[%clk 0:02:55.5]} 6... Ne7 {[%clk 0:02:46.3]}
7. e4 {[%clk 0:02:55.4]} 7... Nbc6 {[%clk 0:02:44.8]} 8. Nc3 {[%clk 0:02:53.6]}
8... O-O {[%clk 0:02:44.6]} 9. Re1 {[%clk 0:02:46.8]} 9... dxe4 {[%clk
0:02:44.6]} 10. dxe4 {[%clk 0:02:46.2]} 10... b6 {[%clk 0:02:39.5]} 11. Qe2
{[%clk 0:02:41.2]} 11... Bb7 {[%clk 0:02:35]} 12. Be3 {[%clk 0:02:40.1]} 12...
Nd4 {[%clk 0:02:30.6]} 13. Bxd4 {[%clk 0:02:33.1]} 13... cxd4 {[%clk 0:02:30.4]}
14. Nb5 {[%clk 0:02:32.7]} 14... a6 {[%clk 0:02:26.8]} 15. Na3 {[%clk
0:02:32.4]} 15... e5 {[%clk 0:02:12.3]} 16. Nxe5 {[%clk 0:02:28]} 16... Bxe5
{[%clk 0:02:10.1]} 17. fxe5 {[%clk 0:02:28.4]} 17... Nc6 {[%clk 0:02:09.8]} 18.
Nc4 {[%clk 0:02:27.6]} 18... Qe7 {[%clk 0:02:08.6]} 19. Nxb6 {[%clk 0:02:25.2]}
19... Rad8 {[%clk 0:02:00.8]} 20. Nd5 {[%clk 0:02:22.2]} 20... Qxe5 {[%clk
0:01:57.6]} 21. Rad1 {[%clk 0:02:21]} 21... Rfe8 {[%clk 0:01:54.5]} 22. Qf3
{[%clk 0:02:18.7]} 22... Kg7 {[%clk 0:01:46.9]} 23. Qf4 {[%clk 0:02:13.9]} 23...
Rd7 {[%clk 0:01:38.7]} 24. Nb6 {[%clk 0:02:09.4]} 24... Rde7 {[%clk 0:01:32.6]}
25. Nc4 {[%clk 0:02:08.8]} 25... Qxf4 {[%clk 0:01:28.6]} 26. gxf4 {[%clk
0:02:08.8]} 26... Na7 {[%clk 0:01:23.6]} 27. Nd6 {[%clk 0:02:06.4]} 27... Rd8
{[%clk 0:01:22.6]} 28. Nxb7 {[%clk 0:02:03.2]} 28... Rxb7 {[%clk 0:01:22.1]} 29.
b3 {[%clk 0:02:03.4]} 29... Nb5 {[%clk 0:01:21.3]} 30. c4 {[%clk 0:02:00.7]}
30... Nc3 {[%clk 0:01:12.7]} 31. Rd2 {[%clk 0:02:00.7]} 31... f6 {[%clk
0:01:08.9]} 32. e5 {[%clk 0:01:57]} 32... Re7 {[%clk 0:01:08.1]} 33. exf6+
{[%clk 0:01:54.1]} 33... Kxf6 {[%clk 0:01:07.9]} 34. Rxe7 {[%clk 0:01:54.3]}
34... Kxe7 {[%clk 0:01:07.8]} 35. Kf2 {[%clk 0:01:54.9]} 35... Kf6 {[%clk
0:01:02.3]} 36. c5 {[%clk 0:01:53.6]} 36... Kf5 {[%clk 0:00:59.7]} 37. c6 {[%clk
0:01:42.5]} 37... Ne4+ {[%clk 0:00:48.2]} 38. Ke2 {[%clk 0:00:56]} 38... Nxd2
{[%clk 0:00:37.7]} 39. Kxd2 {[%clk 0:00:56.9]} 39... Kxf4 {[%clk 0:00:37.3]} 40.
Bh3 {[%clk 0:00:56.8]} 1-0